Cogmind - Beta 15 @@@ ROGUE MODE // 2025.05.10 @ 22:21:41 Player: Polariusz Result: Destroyed by B-75 Beast with Magnetic Acceleration Cannon Performance ------------- Evolutions (3) 1500 Regions Visited (9) 1800 Robots Destroyed (81) 405 Value Destroyed (3217) 3217 Prototype IDs (2) 40 Alien Tech Used (0) 0 Bonus (738) 738 TOTAL SCORE: 7700 Bonus ------- High Alert Combat Kills 168 Follower Combat Kills 70 Entered Garrisons 200 Aligned with FarCom 300 Cogmind --------- Core Integrity 0/700 Matter 253/300 Energy 92/100 System Corruption 0% Temperature Cool (12) Movement Core (50) Location -7/Garrison Parts ------- > --- POWER (1) -------- (None) > --- PROPULSION (2) --- (None) > --- UTILITY (8) ------ Improved Targeting Computer Improved Targeting Computer Advanced Targeting Computer Advanced Targeting Computer Advanced Targeting Computer Improved Melee Analysis Suite > --- WEAPON (2) ------- Power Maul > --- INVENTORY (5) ---- Light Nuclear Core Gatling Laser Gatling Laser Peak State ------------ > --- POWER ------------ Light Nuclear Core > --- PROPULSION ------- Aluminum Leg Carbon-fiber Leg > --- UTILITY ---------- Improved Cooling System Improved Targeting Computer Improved Targeting Computer Advanced Targeting Computer Advanced Targeting Computer Advanced Targeting Computer Improved Melee Analysis Suite Target Analyzer > --- WEAPON ----------- Advanced Assault Cannon Advanced Assault Cannon > --- INVENTORY -------- Light Nuclear Core Light Nuclear Core Aluminum Leg Power Maul [Rating: 40] Favorites ----------- Power Light Nuclear Core Engine Light Ion Engine Power Core Light Nuclear Core Propulsion Compact Wheel Leg Carbon-fiber Leg Wheel Compact Wheel Utility Improved Targeting Computer Device Improved Cooling System Storage Small Storage Unit Processor Improved Targeting Computer Hackware System Shield Protection Improved Light Armor Plating Weapon Medium Laser Energy Gun Medium Laser Energy Cannon Advanced Beam Cannon Ballistic Gun Light Assault Rifle Ballistic Cannon Advanced Assault Cannon Impact Weapon Power Maul Slashing Weapon Axe Build | -11 -10 -10 -9 -9 -9 -8 -8 -7 -7 ------- Run | Yrd Mat Min Mat Min Exi Min Mat Fac Gar Slots Evolved 6 | . . . 2 . . . 2 2 . Power . | . . . . . . . . . . Propulsion . | . . . . . . . . . . Utility 6 | . . . 2 . . . 2 2 . Weapon . | . . . . . . . . . . Parts Attached 71 | 6 7 3 12 1 . 1 10 9 22 Power 12 | 1 2 1 1 . . 1 2 1 3 Engine 8 | 1 2 1 1 . . 1 2 . . Core 4 | . . . . . . . . 1 3 Reactor . | . . . . . . . . . . Propulsion 17 | 2 1 1 3 1 . . 1 1 7 Treads . | . . . . . . . . . . Leg 7 | . . . . . . . . . 7 Wheel 10 | 2 1 1 3 1 . . 1 1 . Hover . | . . . . . . . . . . Flight . | . . . . . . . . . . Utility 19 | 1 1 . 4 . . . 4 5 4 Device 3 | . . . . . . . 1 1 1 Storage 1 | 1 . . . . . . . . . Processor 9 | . . . 3 . . . 1 3 2 Hackware 2 | . . . 1 . . . 1 . . Protection 4 | . 1 . . . . . 1 1 1 Artifact . | . . . . . . . . . . Weapon 23 | 2 3 1 4 . . . 3 2 8 Energy Gun 9 | . 1 . 2 . . . 3 . 3 Energy Cannon 1 | . . . 1 . . . . . . Ballistic Gun 7 | 2 2 1 . . . . . 1 1 Ballistic Cannon 3 | . . . . . . . . 1 2 Launcher . | . . . . . . . . . . Special Weapon . | . . . . . . . . . . Impact Weapon 2 | . . . 1 . . . . . 1 Slashing Weapon 1 | . . . . . . . . . 1 Piercing Weapon . | . . . . . . . . . . Special Melee Weapon . | . . . . . . . . . . Unidentified Prototypes 2 | . . . 1 . . . 1 . . Parts Lost 42 | . 5 2 3 1 . . 5 8 18 Power 8 | . 1 . . 1 . . 2 1 3 Propulsion 14 | . 2 1 1 . . . 1 2 7 Utility 10 | . . 1 1 . . . . 3 5 Weapon 10 | . 2 . 1 . . . 2 2 3 Highest Loss Streak 8 | . 2 1 2 1 . . 3 8 4 To Critical Strikes . | . . . . . . . . . . Average Backups 6 | 1 5 6 7 8 8 7 4 4 5 Power 1 | . 1 1 2 2 2 1 1 . 1 Propulsion 1 | . 1 . 1 1 1 1 . 1 2 Utility 1 | . 1 3 2 3 3 3 . . . Weapon 1 | . . 1 1 2 2 2 1 1 1 Tool/Special . | . . . . . . . . . . Unused Backups 9 | . 2 . 3 . . . . . 4 Power 1 | . . . . . . . . . 1 Propulsion 5 | . 2 . . . . . . . 3 Utility 2 | . . . 2 . . . . . . Weapon 1 | . . . 1 . . . . . . Tool/Special . | . . . . . . . . . . Average Slot Usage (%) 90 | . 74 72 82 95 88 100 95 85 96 Engine 4 | . 13 14 11 7 . 11 6 1 . Core 2 | . . . . . . . . 5 6 Leg 4 | . . . . . . . . . 13 Wheel 11 | . 16 13 12 22 22 22 17 8 . Device 2 | . . . . . . . 6 2 4 Storage 7 | . 14 14 11 11 11 11 9 7 2 Processor 33 | . . . 23 33 33 33 33 36 48 Protection 2 | . 2 2 . . . . 2 6 3 Energy Gun 5 | . 7 . 5 11 11 11 12 4 1 Energy Cannon 3 | . . . 1 11 11 11 4 . . Ballistic Gun 5 | . 20 28 12 . . . . 5 2 Ballistic Cannon 2 | . . . . . . . . 3 6 Impact Weapon 1 | . . . 2 . . . . . 2 Peak Build Rating 40 | 6 7 7 15 15 14 15 24 34 40 Average Rating 22 | 4 5 6 11 14 14 15 17 29 37 On Entrance 13 | . 6 7 6 15 14 14 15 24 34 Naked Turns . | . . . . . . . . . . Heaviest Build 26 | 14 14 12 15 14 11 14 25 26 26 Greatest Support 32 | 26 26 10 32 32 32 32 32 26 30 Greatest Overweight (x) 1 | . 1 1 1 . . . . 1 1 Average Overweight (x) . | . . . . . . . . . . Largest Inventory Capacity 8 | 8 8 8 8 8 8 8 8 8 8 Average Capacity 7 | 6 8 8 8 8 8 8 8 8 6 Most Carried 8 | 4 8 8 8 8 8 7 8 8 8 Average Carried 6 | 1 5 6 7 8 8 7 4 4 5 Final Capacity 8 | 8 8 8 8 8 8 8 8 8 5 Final Carried 8 | 1 6 6 8 8 8 7 8 7 3 Class Distribution -------------------- 62% | Mutant 33% | Scavenger-Mutant Dominant Class ---------------- Mutant | -10/Materials Mutant | -10/Mines Mutant | -9/Materials Mutant | -9/Mines Mutant | -9/Exiles Mutant | -8/Mines Scavenger-Mutant | -8/Materials Mutant | -7/Factory Scavenger-Mutant | -7/Garrison Resources | -11 -10 -10 -9 -9 -9 -8 -8 -7 -7 ----------- Run | Yrd Mat Min Mat Min Exi Min Mat Fac Gar Matter Collected 1714 | 221 250 74 123 40 . . 75 187 744 Remotely . | . . . . . . . . . . Salvage Created 2826 | . 420 130 646 133 . . 315 378 804 Parts 135 | . 23 9 29 18 . . 13 6 37 Haulers Intercepted 1 | . . . 1 . . . . . . Recyclers Shooed 1 | . 1 . . . . . . . . Parts Field Recycled . | . . . . . . . . . . Retrieved Matter . | . . . . . . . . . . Parts Self-Destructed . | . . . . . . . . . . Prevented . | . . . . . . . . . . Kills | -11 -10 -10 -9 -9 -9 -8 -8 -7 -7 ------- Run | Yrd Mat Min Mat Min Exi Min Mat Fac Gar Combat Hostiles Destroyed 68 | . 10 5 9 4 . . 9 7 24 Melee 5 | . . . . . . . . 2 3 Guns 36 | . 10 5 8 . . . 5 2 6 Cannons 22 | . . . 1 4 . . 4 . 13 Classes Destroyed 13 | . 4 . 5 1 . . . . 3 Worker 3 | . 1 . . 2 . . . . . Builder 2 | . . . 1 1 . . . . . Tunneler 1 | . . . . 1 . . . . . Hauler 1 | . . . 1 . . . . . . Recycler 2 | . . . 2 . . . . . . Operator 2 | . 1 . . . . . 1 . . Watcher 2 | . . . 2 . . . . . . Swarmer 19 | . 3 3 . 4 . . 4 . 5 Grunt 37 | . 7 2 6 . . . 3 6 13 Duelist 2 | . . . . . . . . . 2 Sentry 8 | . . . 3 . . . 2 1 2 Programmer 1 | . . . . . . . . . 1 Behemoth 1 | . . . . . . . . . 1 Best Kill Streak 7 | . 3 3 3 2 . . 5 7 6 Combat Bots Only 7 | . 3 3 3 2 . . 5 7 6 Max Kills in Single Turn 1 | . 1 1 1 1 . . 1 1 1 Gunslinging . | . . . . . . . . . . Exploded . | . . . . . . . . . . Melee 1 | . . . . . . . . 1 1 Uniques/NPCs Destroyed . | . . . . . . . . . . Combat | -11 -10 -10 -9 -9 -9 -8 -8 -7 -7 -------- Run | Yrd Mat Min Mat Min Exi Min Mat Fac Gar Hostile Shots Fired 550 | . 76 38 39 31 . . 49 85 232 Missed 163 | . 11 12 16 8 . . 17 24 75 Hits 387 | . 65 26 23 23 . . 32 61 157 Melee 4 | . . . . . . . . . 4 Projectile 383 | . 65 26 23 23 . . 32 61 153 Critical Strikes 11 | . . . . 1 . . 1 3 6 Damage Taken 5116 | . 679 264 307 194 . . 387 673 2612 Core 1216 | . 166 57 92 52 . . 131 128 590 Absorbed by Shields . | . . . . . . . . . . Regen/Repaired (Parts) 29 | . 29 . . . . . . . . Core Remaining (%) 62 | 100 . 10 . . . 64 76 . . Volleys Fired 213 | . 43 17 36 17 . . 29 12 59 Largest 2 | . 2 2 2 2 . . 2 2 2 Hottest 160 | . 60 40 118 118 . . 133 120 160 Shots Fired 391 | . 76 34 66 34 . . 50 24 107 Gun 289 | . 76 34 63 17 . . 33 22 44 Cannon 102 | . . . 3 17 . . 17 2 63 Launcher . | . . . . . . . . . . Special . | . . . . . . . . . . Kinetic 227 | . 56 34 33 . . . . 4 100 Thermal 164 | . 20 . 33 34 . . 50 20 7 Explosive . | . . . . . . . . . . Electromagnetic . | . . . . . . . . . . Robot Hit Streak 52 | . 7 3 17 18 . . 27 51 52 Robot Miss Streak 6 | . 2 2 3 6 . . 2 . 2 Penetration Max 1 | . . . . . . . . . 1 Secondary Targets 7 | . 2 . 3 . . . . . 2 Max Gunslinging Chain 1 | . 1 . 1 . . . . . 1 Shots Hit Robots 315 | . 48 20 55 14 . . 42 28 108 Core Hits 132 | . 20 10 30 8 . . 15 8 41 Critical Kills . | . . . . . . . . . . Critical Parts Destroyed 8 | . 1 . . . . . . 3 4 Critical Strikes 28 | . 1 . 3 . . . 4 7 13 Burn 11 | . . . 3 . . . 4 4 . Destroy 2 | . 1 . . . . . . . 1 Blast 9 | . . . . . . . . . 9 Smash 6 | . . . . . . . . 3 3 Melee Attacks 41 | . . . 4 . . . 1 4 32 Impact 40 | . . . 4 . . . 1 4 31 Slashing 1 | . . . . . . . . . 1 Piercing . | . . . . . . . . . . Sneak Attacks 1 | . . . 1 . . . . . . Combat Hostiles . | . . . . . . . . . . Follow-up Attacks . | . . . . . . . . . . Damage Inflicted 6007 | . 574 178 688 223 . . 703 540 3101 Guns 3213 | . 571 178 531 101 . . 475 373 984 Cannons 1705 | . . . 41 122 . . 228 31 1283 Explosions . | . . . . . . . . . . Melee 1086 | . . . 116 . . . . 136 834 Ramming 3 | . 3 . . . . . . . . Kinetic 2907 | . 407 178 219 . . . . 69 2034 Thermal 2011 | . 164 . 353 223 . . 703 335 233 Explosive . | . . . . . . . . . . Electromagnetic . | . . . . . . . . . . Impact 1086 | . . . 116 . . . . 136 834 Slashing . | . . . . . . . . . . Piercing . | . . . . . . . . . . Highest Corruption 1 | . 1 1 . . . . . . . Average Corruption 1 | . 1 1 . . . . . . . Corruption Purged . | . . . . . . . . . . Corruption Blocked . | . . . . . . . . . . Effects 6 | . 5 1 . . . . . . . Matter Fused 3 | . 2 1 . . . . . . . Energy Discharges 1 | . 1 . . . . . . . . Data Loss (minor) 1 | . 1 . . . . . . . . Weapon Failures 1 | . 1 . . . . . . . . Overload Shots . | . . . . . . . . . . Overflow Damage 385 | . . . 74 . . . . 108 203 Projectiles 28 | . . . . . . . . 14 14 Explosions . | . . . . . . . . . . Melee 357 | . . . 74 . . . . 94 189 Knockbacks 11 | . . . . . . . . 2 9 Impact 6 | . . . . . . . . 2 4 Kinetic 5 | . . . . . . . . . 5 Secondary . | . . . . . . . . . . Self-Inflicted Damage 1 | . 1 . . . . . . . . Shots . | . . . . . . . . . . Rammed 1 | . 1 . . . . . . . . Targets Rammed 1 | . 1 . . . . . . . . Kicked . | . . . . . . . . . . Crushed . | . . . . . . . . . . Highest Temperature 521 | . 19 19 198 286 . . 399 521 499 Average Temperature 110 | . 10 8 51 92 . . 162 259 121 Received Heat Transfer 1898 | . 285 90 117 . . . 99 366 941 Effects 6 | . . . . . . . 2 3 1 Shutdowns 1 | . . . . . . . . 1 . Energy Bleed 2 | . . . . . . . 1 1 . Matter Decay 1 | . . . . . . . . 1 . Short Circuit 1 | . . . . . . . 1 . . Damage (minor) 1 | . . . . . . . . . 1 Siege Activations . | . . . . . . . . . . Martial Activations . | . . . . . . . . . . Shielding Activations . | . . . . . . . . . . Robots Disrupted . | . . . . . . . . . . Combat Hostiles . | . . . . . . . . . . Robots Corrupted 5 | . . . 1 . . . . 2 2 Combat Hostiles 4 | . . . . . . . . 2 2 Parts Fried 6 | . . . . . . . . 4 2 Impact Corruptions 10 | . . . 2 . . . . 3 5 Robots Melted 1 | . . . . . . . . 1 . Combat Hostiles 1 | . . . . . . . . 1 . Parts Melted 9 | . . . 1 1 . . 5 2 . Heat Transferred 5438 | . 375 . 1184 518 . . 1850 1036 475 Parts Sabotaged . | . . . . . . . . . . Parts Stolen . | . . . . . . . . . . Parts Stripped . | . . . . . . . . . . Power Chain Reactions . | . . . . . . . . . . Alert | -11 -10 -10 -9 -9 -9 -8 -8 -7 -7 ------- Run | Yrd Mat Min Mat Min Exi Min Mat Fac Gar Maximum Alert Level 3 | . . . . . . . . . 3 Low Security (%) 71 | 100 100 100 100 100 . 100 100 100 26 Level 1 8 | . . . . . . . . . 22 Level 2 14 | . . . . . . . . . 38 Level 3 4 | . . . . . . . . . 12 Level 4 . | . . . . . . . . . . Level 5 . | . . . . . . . . . . High Security . | . . . . . . . . . . Max Security . | . . . . . . . . . . Peak Influence 854 | . 85 79 123 117 . . 76 80 854 Initial 41 | . . 19 22 41 . . . 2 . Average 173 | . 32 51 44 41 . . 33 21 400 Influence Increases 2457 | . 322 120 294 276 . . 272 199 974 Destroy 0b10 Robot/C 1480 | . 200 100 180 180 . . 200 140 480 Destroy 0b10 Robot/NC 65 | . 10 . 30 20 . . 5 . . Destroy Leader 246 | . 50 20 56 30 . . 30 30 30 Allied During Kill 22 | . . . . 16 . . 6 . . Successful Hack 42 | . 2 . 12 . . . . 14 14 Disable Machine 45 | . . . 15 15 . . . 15 . Anti-Garrison Action 350 | . . . . . . . . . 350 Destroy Structure 57 | . . . 1 . . . 1 . 55 Partial Spotted 15 | . 15 . . . . . . . . Lose Combat Pursuer 135 | . 45 . . 15 . . 30 . 45 Influence Decreases 1653 | . 271 112 246 383 . . 266 205 170 Entered New Map 139 | . . 32 37 66 . . . 4 . Time Decay 1084 | . 231 60 199 267 . . 196 131 . Lost Part 370 | . 40 20 10 10 . . 50 70 170 Lost Ally 60 | . . . . 40 . . 20 . . Squads Dispatched 6 | . 3 . 1 . . . . 2 . Investigation 3 | . 2 . 1 . . . . . . Extermination . | . . . . . . . . . . Reinforcement 2 | . 1 . . . . . . 1 . Assault . | . . . . . . . . . . Garrison 1 | . . . . . . . . 1 . Intercept . | . . . . . . . . . . Searches Triggered . | . . . . . . . . . . Construction Impeded . | . . . . . . . . . . Haulers Reinforced . | . . . . . . . . . . Active Scanning Responses . | . . . . . . . . . . Cargo Convoy Interrupts . | . . . . . . . . . . Stealth | -11 -10 -10 -9 -9 -9 -8 -8 -7 -7 --------- Run | Yrd Mat Min Mat Min Exi Min Mat Fac Gar Distress Signals . | . . . . . . . . . . Communications Jammed . | . . . . . . . . . . Distress Signals . | . . . . . . . . . . Times Spotted 93 | . 15 5 13 9 . . 13 9 29 Peak Tracking Total 7 | . 4 3 3 3 . . 4 6 7 Tactical Retreats 7 | . 1 . . 1 . . 2 . 3 Traps | -11 -10 -10 -9 -9 -9 -8 -8 -7 -7 ------- Run | Yrd Mat Min Mat Min Exi Min Mat Fac Gar Traps Triggered 8 | . 3 . . . . . 2 . 3 Indirectly . | . . . . . . . . . . Trap Hack Attempts . | . . . . . . . . . . Triggered . | . . . . . . . . . . Disarmed . | . . . . . . . . . . Reprogrammed . | . . . . . . . . . . Reused . | . . . . . . . . . . Traps Extracted . | . . . . . . . . . . Installed . | . . . . . . . . . . Triggered . | . . . . . . . . . . Machines | -11 -10 -10 -9 -9 -9 -8 -8 -7 -7 ---------- Run | Yrd Mat Min Mat Min Exi Min Mat Fac Gar Machines Disabled 6 | . . . 1 1 . . . 1 3 Max in Single Turn 1 | . . . 1 1 . . . 1 1 Garrison Relay 3 | . . . . . . . . . 3 Machines Repaired . | . . . . . . . . . . Machines Dismantled . | . . . . . . . . . . Machines Sabotaged . | . . . . . . . . . . Overloaded Fab Kills . | . . . . . . . . . . Hacking | -11 -10 -10 -9 -9 -9 -8 -8 -7 -7 --------- Run | Yrd Mat Min Mat Min Exi Min Mat Fac Gar Machines Accessed 17 | . 2 . 8 . 3 . 1 2 1 Terminals 11 | . 1 . 7 . . . 1 1 1 Fabricators . | . . . . . . . . . . Repair Stations 1 | . 1 . . . . . . . . Recycling Units . | . . . . . . . . . . Scanalyzers 1 | . . . 1 . . . . . . Garrison Access 1 | . . . . . . . . 1 . Total Hacks 46 | . 4 . 20 . 18 . 1 2 1 Successful 35 | . 3 . 11 . 18 . . 2 1 Failed 11 | . 1 . 9 . . . 1 . . Catastrophic 2 | . . . 1 . . . 1 . . Database Lockouts . | . . . . . . . . . . Manual . | . . . . . . . . . . Terminals 21 | . 2 . 16 . . . 1 1 1 Fabricators . | . . . . . . . . . . Repair Stations 2 | . 2 . . . . . . . . Recycling Units . | . . . . . . . . . . Scanalyzers 4 | . . . 4 . . . . . . Garrison Access 1 | . . . . . . . . 1 . Terminal Hacks 28 | . 1 . 7 . 18 . . 1 1 Record 18 | . . . . . 18 . . . . Robot Analysis 1 | . . . 1 . . . . . . Emergency Access Points 2 | . 1 . . . . . . . 1 Alert Level 1 | . . . 1 . . . . . . Locate Traps 2 | . . . 1 . . . . 1 . Transport Status 1 | . . . 1 . . . . . . Recall Investigation 1 | . . . 1 . . . . . . Registered Prototypes 1 | . . . 1 . . . . . . Zone Layout 1 | . . . 1 . . . . . . Fabricator Hacks . | . . . . . . . . . . Repair Station Hacks 2 | . 2 . . . . . . . . Scan Component 1 | . 1 . . . . . . . . Repair 1 | . 1 . . . . . . . . Recycling Unit Hacks . | . . . . . . . . . . Scanalyzer 4 | . . . 4 . . . . . . Insert Component 2 | . . . 2 . . . . . . Analyze 2 | . . . 2 . . . . . . Garrison Access Hacks 1 | . . . . . . . . 1 . Unlock Access 1 | . . . . . . . . 1 . Unauthorized Hacks . | . . . . . . . . . . Terminals . | . . . . . . . . . . Fabricators . | . . . . . . . . . . Repair Stations . | . . . . . . . . . . Recycling Units . | . . . . . . . . . . Scanalyzers . | . . . . . . . . . . Garrison Access . | . . . . . . . . . . Data Cores Recovered 1 | . . . . . . . 1 . . Used . | . . . . . . . . . . Hacking Detections 11 | . 2 . 6 . . . 1 2 . Full Trace Events 1 | . . . 1 . . . . . . Feedback Events 1 | . . . 1 . . . . . . Hackware Fried 1 | . . . 1 . . . . . . Feedback Blocked . | . . . . . . . . . . Robot Schematics Acquired . | . . . . . . . . . . Robots Built . | . . . . . . . . . . Authchips . | . . . . . . . . . . Time . | . . . . . . . . . . Total Robot Build Rating . | . . . . . . . . . . Part Schematics Acquired 2 | . . . 2 . . . . . . Parts Built . | . . . . . . . . . . Authchips . | . . . . . . . . . . Time . | . . . . . . . . . . Total Part Build Rating . | . . . . . . . . . . Parts Repaired 1 | . 1 . . . . . . . . Time 26 | . 26 . . . . . . . . Parts Recycled . | . . . . . . . . . . Recycled Matter . | . . . . . . . . . . Retrieved Matter . | . . . . . . . . . . Retrieved Components . | . . . . . . . . . . Parts Scanalyzed 2 | . . . 2 . . . . . . Part Schematics Acquired 2 | . . . 2 . . . . . . Parts Damaged . | . . . . . . . . . . Bothacking | -11 -10 -10 -9 -9 -9 -8 -8 -7 -7 ------------ Run | Yrd Mat Min Mat Min Exi Min Mat Fac Gar Used RIF Installer . | . . . . . . . . . . Robots Hacked . | . . . . . . . . . . Non-combat . | . . . . . . . . . . Combat . | . . . . . . . . . . Robot Hacks Applied . | . . . . . . . . . . Relay Couplers Released 12 | . . . . . . . . . 12 Machine Destruction 12 | . . . . . . . . . 12 Fabnet Peak Effective % . | . . . . . . . . . . Robots Rewired . | . . . . . . . . . . Allies Hacked . | . . . . . . . . . . Hacks Repelled . | . . . . . . . . . . Allies | -11 -10 -10 -9 -9 -9 -8 -8 -7 -7 -------- Run | Yrd Mat Min Mat Min Exi Min Mat Fac Gar Total Allies 4 | . . . . 4 . . . . . Largest Group 3 | . . . . 3 2 1 1 . . Highest-Rated Group 47 | . . . . 47 47 16 16 . . Highest-Rated Ally 31 | . . . . 31 31 16 16 . . Total Orders . | . . . . . . . . . . Ally Attacks 25 | . . . . 18 . . 7 . . Total Damage 224 | . . . . 158 . . 66 . . Kills 6 | . . . . 5 . . 1 . . Allies Corrupted . | . . . . . . . . . . Allies Melted . | . . . . . . . . . . Intel | -11 -10 -10 -9 -9 -9 -8 -8 -7 -7 ------- Run | Yrd Mat Min Mat Min Exi Min Mat Fac Gar Active Infowar (turns) 317 | . . . . . . . 317 . . Sensors 317 | . . . . . . . 317 . . Robot Analysis Total 1 | . . . 1 . . . . . . Derelict Logs Recovered 3 | . . 2 . 1 . . . . . Drone Launches . | . . . . . . . . . . Drone Recoveries . | . . . . . . . . . . Exploration | -11 -10 -10 -9 -9 -9 -8 -8 -7 -7 ------------- Run | Yrd Mat Min Mat Min Exi Min Mat Fac Gar Turns Passed 5359 | 59 620 133 480 765 470 71 438 464 1859 Spaces Moved 3813 | 48 469 84 351 621 452 60 303 344 1081 Core 19 | 15 . . . . . . . . 4 Treads . | . . . . . . . . . . Legs 1001 | . . . . . . . . . 1001 Wheels 2793 | 33 469 84 351 621 452 60 303 344 76 Hover . | . . . . . . . . . . Flight . | . . . . . . . . . . Fastest Speed 50 | 50 80 80 90 100 100 100 90 90 50 Average Speed 104 | 77 93 92 95 100 100 100 91 112 120 Slowest Speed 190 | 90 100 95 100 100 100 100 100 115 190 Overloaded Moves . | . . . . . . . . . . Propulsion Burnouts . | . . . . . . . . . . Robots Hopped . | . . . . . . . . . . Potential Cave-ins . | . . . . . . . . . . Cave-ins Triggered . | . . . . . . . . . . Exploration Rate (%) 45 | 3 76 38 47 98 81 23 23 7 63 Regions Visited 9 Branch Regions 4 Pre-discovered Areas 3 | . . 1 . 1 1 . . . . Known Exits Taken 1 | . . . . . . . . 1 . Unknown Exits Taken 8 | 1 1 1 1 1 1 1 1 . . Scrap Searched 3 | . . 1 . 2 . . . . . Spaces Dug 2 | . . . 1 . . . 1 . . Terrain Destroyed 5 | . . . 1 . . . 1 . 3 Melee 2 | . . . 1 . . . 1 . . Projectile 3 | . . . . . . . . . 3 AOE . | . . . . . . . . . . Terrain Rammed . | . . . . . . . . . . Walls Destroyed . | . . . . . . . . . . Machines Disabled . | . . . . . . . . . . Actions | -11 -10 -10 -9 -9 -9 -8 -8 -7 -7 --------- Run | Yrd Mat Min Mat Min Exi Min Mat Fac Gar Total 4726 | 69 575 111 428 732 470 71 411 390 1469 Wait 454 | 9 36 3 4 92 19 11 48 9 223 Move 3801 | 47 468 83 350 620 451 59 302 343 1078 Hop . | . . . . . . . . . . Pick Up 85 | 7 15 3 15 1 . . 13 9 22 Fast Attach . | . . . . . . . . . . Attach 63 | 6 7 1 7 . . 1 12 11 18 Detach 2 | . . . . . . . . 1 1 Swap 30 | . 1 2 6 1 . . 3 . 17 Drop 26 | . 4 2 6 1 . . 3 1 9 Fire 213 | . 43 17 36 17 . . 29 12 59 Melee 41 | . . . 4 . . . 1 4 32 Ram 1 | . 1 . . . . . . . . Kick . | . . . . . . . . . . Crush . | . . . . . . . . . . Escape Stasis 10 | . . . . . . . . . 10 Rewire . | . . . . . . . . . . Trap . | . . . . . . . . . . Miscellaneous . | . . . . . . . . . . Route ------- -11/Scrapyard -10/Materials (discovered 3 exits: *Mat x2 / [*Min]) -10/Mines -9/Materials (discovered 2 exits: *Mat / [*Min]) -9/Mines (discovered 3 exits: *Mat x2 / *Exi) -9/Exiles -8/Mines -8/Materials -7/Factory -7/Garrison (discovered 3 exits: [*Fac x3]) History --------- Turn | Location | Event 7 | -11/Scrapyard | Discovered new exit (range 15) 60 | -11/Scrapyard | Entered Materials 277 | -10/Materials | Discovered new exit (range 16) 306 | -10/Materials | Build established: Mutant 336 | -10/Materials | Discovered new exit (range 12) 418 | -10/Materials | Discovered new exit (range 10) 548 | -10/Materials | Core integrity fell below 50% 671 | -10/Materials | Repaired Wheel 680 | -10/Materials | Entered Mines 732 | -10/Mines | Learned location of Zion (-6) 753 | -10/Mines | Learned Materials interactive machine intel 782 | -10/Mines | Core integrity fell below 20% 802 | -10/Mines | Discovered new exit (range 13) 813 | -10/Mines | Entered Materials 813 | -9/Materials | Evolved 2 slots: Utility x2 814 | -9/Materials | Loaded intel: 18 interactive machine locations 937 | -9/Materials | Hacking Suite fried by hacking feedback 1060 | -9/Materials | Discovered new exit (range 16) 1262 | -9/Materials | Discovered new exit (range 15) 1293 | -9/Materials | Entered Mines 1390 | -9/Mines | Discovered new exit (range 8) 1400 | -9/Mines | Assisted by bots powering up and referring to "LRC-V3" 1603 | -9/Mines | Discovered new exit (range 8) 1744 | -9/Mines | Deemed a non-threat by the Exiles lab entrance 1744 | -9/Mines | Discovered new exit (range 5) 1949 | -9/Mines | Received a Mining Laser from a helpful Derelict 2058 | -9/Mines | Entered Exiles 2058 | -9/Exiles | Accompanied by 2 allies 2083 | -9/Exiles | Met 8R-AWN 2100 | -9/Exiles | Met EX-HEX 2139 | -9/Exiles | Met EX-DEC 2176 | -9/Exiles | Met EX-BIN 2190 | -9/Exiles | Aligned with FarCom system 2191 | -9/Exiles | Given EX-Vault access code 2307 | -9/Exiles | Visited The Gauntlet 2496 | -9/Exiles | Discovered new exit (range 14) 2528 | -9/Exiles | Entered Mines 2528 | -8/Mines | Accompanied by 1 ally 2582 | -8/Mines | Discovered new exit (range 6) 2599 | -8/Mines | Entered Materials 2599 | -8/Materials | Accompanied by 1 ally 2599 | -8/Materials | Evolved 2 slots: Utility x2 2735 | -8/Materials | Lost 3 parts (1p1n1w) 2971 | -8/Materials | Discovered new exit (range 8) 3037 | -8/Materials | Entered Factory 3037 | -7/Factory | Evolved 2 slots: Utility x2 3055 | -7/Factory | Garrison activated, responded to threat 3133 | -7/Factory | Lost 8 parts (1p2n3u2w) 3138 | -7/Factory | Destroyed 7 combat bots 3177 | -7/Factory | Identified exit to Garrison 3501 | -7/Factory | Entered Garrison 3585 | -7/Garrison | Triggered checkpoint 3666 | -7/Garrison | Garrison Relay disabled 3721 | -7/Garrison | Triggered checkpoint 3728 | -7/Garrison | Triggered checkpoint 4095 | -7/Garrison | Spotted B-75 Beast 4172 | -7/Garrison | Core integrity fell below 50% 4190 | -7/Garrison | Lost 3 parts (1n2u) 4343 | -7/Garrison | Triggered checkpoint 4380 | -7/Garrison | Discovered new exit (range 14) 4486 | -7/Garrison | Build established: Scavenger-Mutant 4589 | -7/Garrison | Triggered checkpoint 4607 | -7/Garrison | Discovered new exit (range 8) 4638 | -7/Garrison | Garrison Relay disabled 4850 | -7/Garrison | Spotted B-75 Beast 4906 | -7/Garrison | Discovered new exit (range 10) 4959 | -7/Garrison | Triggered checkpoint 4971 | -7/Garrison | Garrison Relay disabled 5175 | -7/Garrison | Lost 4 parts (2n1u1w) 5333 | -7/Garrison | Attempted to access garrison exit controls, blocked by remote lockdown 5336 | -7/Garrison | Lost 3 parts (2n1u) 5353 | -7/Garrison | Destroyed B-75 Beast 5353 | -7/Garrison | Core integrity fell below 20% 5360 | -7/Garrison | Destroyed by B-75 Beast with Magnetic Acceleration Cannon Last Messages --------------- ALERT: Garrison interior compromised. Acquired 6 matter. B-75 Beast springs to life. Aluminum Leg destroyed. Imp. Light Armor Plating destroyed. Aluminum Leg destroyed. Attempting to access garrison exit controls... Remote lockdown engaged. Gatling Laser destroyed. Target Analyzer destroyed. Lgt. Nuclear Core destroyed. Knocked back. Aluminum Leg destroyed. B-75 Beast suffers critical hit (Smash). Destroyed Hvy. Machine Gun. B-75 Beast system corrupted by crushing effect. Knocked back. Acquired 8 matter. B-75 Beast system terminally corrupted. Imp. Cooling System fried. Map ----- +----------------------------------------------------+ | ?????????????????????????????????? | | ?????????????????????????????????? | | ?????????????????????????????????? | | ?????????????????????????????????? | | ?????????????????????????????????? | | ?????????????????????????????????? | | ?????????????????????????????????? | | ?????????????????????????????????? | | ?????????????????????????????????? | | ?????????????????????????????????? | | ?????????????????????????????????? | | ?????????????????????????????????? | | ?????????????????????????????????? | | ?????????????????????????????????? | | ?????????????????????????????????? | | ?????????????????????????????????? | | ?????????????????????????????????? | | ?????????????????????????????????? | | ????????????????????????+?+??+???? | | ?????????????????????????????????? | | ?????????????????????????????????? | | ????????#####????????????????????? | | ????????# #?????#+#????????????? | | ???????## <]####### #####+######## | | ???????#; !%] [ = | | ???????##@!=* % = !* * ^ | | ????????# BB ! ^ | | ????????##BB;;;;;############+"### | | ?????????###### ;#??????????# #?? | | ??????????????# "#??????????# #?? | | ??????????????# "#??????????# #?? | | ??????????#####"##??????????# #?? | | ??????????# % ?????????# #?# | | ??????????# ######## #?# | | ??????????# + #?# | | ??????????# + #?# | | ??????????# ######## #?# | | ??????????# #??????# ### | | ??????????+ #??????# T## | | ??????????# #??????# ##? | | ??????????# ######## +?? | | ??????????# + #?? | | ??????????# + ### | | ??????????# ######## | | ??????????# #??????# | | ??????????###++++++#????????###### | | ?????????????????????????????????? | | ?????????????????????????????????? | | ?????????????????????????????????? | | ?????????????????????????????????? | +----------------------------------------------------+ Best States ------------- Heat Dissipation 61 Energy Generation 14 Energy Capacity 265 Matter Stores 300 Matter Capacity 300 Sight Range 16 Robot Scan Range 14 Terrain Scan Density 10 Armor Coverage 225 Evasion (%) 55 Targeting Accuracy 36 Melee Accuracy 6 Target Analysis 5 Offensive Hacking 10 Defensive Hacking 10 Item Schematics ----------------- Maul | -9/Materials | Scanalyzed Sensor Array | -9/Materials | Scanalyzed Robot Schematics ------------------ None Fabricated ------------ Nothing Repaired ---------- Wheel | 27% | -10/Materials Alien Tech Used ----------------- None Achievements -------------- None Challenges ------------ None Game ------ Seed BarrageHugeThermoblaster Manual? 0 Play Time 00:48:35 Cumulative 36.5 hours Start 2025.05.09 @ 22:36:14 End 2025.05.10 @ 22:21:41 Sessions 3 Manual Loads 0 Difficulty Rogue Special Mode None Game No. 35 Rogue 35 Adventurer 0 Explorer 0 Win Type - Total 1 Types 1/0/0/0/0/0/0/0/0/0 Lore% 21 Gallery% 26 Achievement% 26 Wizard Run 0 Options --------- Layout 1 ASCII 0 Keyboard 0 Movement Numpad Keybinds 0 Fullscreen 1 Font 24/Smallcaps Map View 50x35 Zoom Use 0% Tactical HUD 0 Map Filters NONE Filters NONE Steam 1 RUN: fd68a790-a425-4896-9c57-5c1611536329